bitfinex/quotes_SOLUSD_20250301
["timestamp","ask_amount","ask_price","bid_price","bid_amount"]
[1740805284615,86.1452,146.92,146.87,0.063]
[1740805285217,20.0,146.89,146.87,0.063]
[1740805288112,1.601,146.87,146.81,0.063]
[1740805288715,20.0,146.84,146.81,0.063]
[1740805290541,20.0,146.83,146.81,0.063]
[1740805290717,17.5,146.83,146.81,0.063]
[1740805290914,80.7,146.82,146.81,0.063]
[1740805292938,20.0,146.82,146.81,0.063]
[1740805294513,80.7,146.85,146.81,0.063]
[1740805297914,80.7,146.85,146.81,19.1352]
[1740805300624,80.7,146.85,146.81,5.5122]
[1740805301499,80.7,146.89,146.81,19.1352]
[1740805301909,80.7,146.89,146.81,13.686]
[1740805302701,86.1464,146.89,146.81,0.063]
[1740805302906,0.063,146.85,146.81,0.063]
[1740805306122,20.063,146.85,146.81,0.063]
[1740805307626,80.7,146.84,146.81,0.063]
[1740805308832,80.7,146.83,146.81,0.063]
[1740805309031,20.0,146.79,146.75,0.063]
[1740805309327,20.0,146.76,146.75,0.063]
[1740805309528,25.451,146.76,146.75,0.063]
[1740805313308,20.0,146.76,146.75,0.063]
[1740805313802,106.151,146.76,146.75,0.063]
[1740805315430,25.451,146.76,146.75,0.063]
[1740805316930,30.9079278,146.76,146.75,0.063]
[1740805317117,25.451,146.76,146.75,0.063]
[1740805319635,7.0055,146.77,146.75,0.063]
[1740805319835,5.4499,146.79,146.75,0.063]
[1740805320135,20.0,146.76,146.75,0.063]
[1740805320521,80.7,146.77,146.75,0.063]
[1740805320732,80.7,146.79,146.75,0.063]
[1740805320912,86.1501,146.79,146.75,0.063]
[1740805321832,20.0,146.76,146.75,0.063]
[1740805322842,25.451,146.76,146.75,0.063]
[1740805326935,6.1327,146.74,146.72,0.063]
[1740805327141,18.64964886,146.73,146.72,0.063]
[1740805327904,20.0,146.71,146.66,0.03]
[1740805328108,20.0,146.67,146.66,0.03]
[1740805329738,20.0,146.69,146.66,0.03]
[1740805330123,20.0,146.68,146.66,0.03]
[1740805331818,87.0,146.71,146.66,0.03]
[1740805332018,80.7,146.7,146.66,0.03]
[1740805333722,86.1533,146.7,146.66,0.03]
[1740805334041,20.0,146.67,146.66,0.03]
[1740805336662,25.4544,146.67,146.66,0.03]
[1740805336846,20.0,146.67,146.66,0.03]
[1740805338049,25.4544,146.67,146.66,0.03]
[1740805339061,20.0,146.67,146.66,0.03]
[1740805339440,25.4544,146.67,146.66,0.03]
[1740805340057,20.0,146.67,146.66,0.03]
[1740805340244,11.7541,146.68,146.66,0.03]
[1740805340453,6.3,146.68,146.66,0.03]
[1740805341665,11.7541,146.68,146.66,0.03]
[1740805342155,80.7,146.71,146.66,0.03]
[1740805343654,20.0,146.68,146.66,0.03]
[1740805343855,20.0,146.67,146.66,0.03]
[1740805344634,80.7,146.68,146.66,0.03]
[1740805344833,6.32,146.67,146.66,0.03]
[1740805345764,11.7744,146.67,146.66,0.03]
[1740805346148,18.1218,146.67,146.66,0.03]
[1740805349764,20.0,146.64,146.6,0.03]
[1740805350077,80.7,146.66,146.6,0.03]
[1740805350363,20.0,146.63,146.6,0.03]
[1740805351983,5.4562,146.62,146.6,0.03]
[1740805352468,25.456,146.63,146.6,0.03]
[1740805357357,20.0,146.61,146.6,0.03]
[1740805361048,20.0,146.62,146.6,0.03]
[1740805361254,20.0,146.61,146.6,0.03]
[1740805363963,25.4566,146.61,146.6,0.03]
[1740805369376,57.74784886,146.61,146.52,1.6232]
[1740805369576,20.0,146.57,146.52,1.6232]
[1740805371268,20.0,146.57,146.52,7.0831]
[1740805373688,25.4581,146.57,146.52,1.6232]
[1740805374902,25.4581,146.57,146.51,0.03]
[1740805377314,20.0,146.57,146.51,0.03]
[1740805378579,20.0,146.57,146.51,5.4903]
[1740805379402,99.1276,146.6,146.51,5.4903]
[1740805379596,80.7,146.59,146.51,5.4903]
[1740805380590,80.7,146.59,146.51,0.03]
[1740805380798,5.4577,146.58,146.51,0.03]
[1740805381310,1.6067,146.57,146.51,0.03]
[1740805382189,5.4585,146.56,146.51,0.03]
[1740805383609,7.0649,146.57,146.51,0.03]
[1740805383783,5.4582,146.57,146.51,0.03]
[1740805384103,80.7,146.57,146.51,0.03]
[1740805384293,20.0,146.53,146.51,0.03]
[1740805384479,20.0,146.52,146.51,0.03]
[1740805385310,6.3,146.53,146.51,0.03]
[1740805385807,20.0,146.52,146.51,0.03]
[1740805386709,26.3,146.53,146.51,0.03]
[1740805387290,6.3,146.53,146.51,0.03]
[1740805388319,80.7,146.57,146.51,0.03]
[1740805388889,86.1581,146.57,146.51,0.03]
[1740805390083,20.0,146.53,146.51,0.03]
[1740805390722,20.0,146.52,146.51,0.03]
[1740805391921,45.72374886,146.52,146.5,0.03]
[1740805392095,14.77786781,146.51,146.5,0.03]
[1740805392292,129.77786781,146.51,146.5,0.03]
[1740805393105,135.23816781,146.51,146.5,0.03]
[1740805394215,20.0,146.44,146.39,1.0]
[1740805394518,6.3,146.43,146.39,1.0]
[1740805394703,6.5378,146.47,146.39,1.0]
[1740805394910,6.3,146.46,146.39,6.4647]
[1740805395319,6.3,146.46,146.39,1.0]
[1740805395718,20.0,146.44,146.39,1.0]
[1740805396304,6.3,146.46,146.39,1.0]
[1740805396305,11.7623,146.46,146.39,1.0]
[1740805397526,20.0,146.44,146.39,1.0]
[1740805398632,20.0,146.43,146.39,1.0]
[1740805399724,5.4637,146.42,146.39,1.0]
[1740805400930,20.0,146.4,146.39,1.0]
[1740805401913,6.32,146.44,146.39,1.57195727]
[1740805402103,6.32,146.44,146.39,3.57195727]
[1740805402901,6.32,146.44,146.41,2.57195727]
[1740805403104,6.32,146.44,146.42,2.0]
[1740805403320,5.4618,146.47,146.43,2.0]
[1740805403711,5.4618,146.47,146.43,2.57195727]
[1740805404105,5.4618,146.47,146.44,2.0]
[1740805404519,20.0,146.45,146.44,2.0]
[1740805404719,80.7,146.48,146.45,0.57195727]
[1740805405028,20.0,146.46,146.45,0.57195727]
[1740805405210,80.7,146.48,146.45,2.57195727]
[1740805405416,20.0,146.46,146.45,2.57195727]
[1740805407409,80.7,146.47,146.46,2.0]
[1740805407829,20.0,146.44,146.42,0.57195727]
[1740805408009,20.0,146.44,146.42,2.57195727]
[1740805408211,20.0,146.44,146.43,0.57195727]
[1740805410610,80.7,146.46,146.45,0.57195727]
[1740805410814,80.7,146.46,146.44,2.57195727]
[1740805413024,80.7,146.46,146.45,0.57195727]
[1740805413231,80.7,146.46,146.44,2.0]
[1740805413232,86.1622,146.46,146.44,2.57195727]
[1740805413430,86.1622,146.46,146.45,0.57195727]
[1740805414056,86.1622,146.46,146.44,0.57195727]
[1740805414846,86.1622,146.46,146.45,0.57195727]
[1740805415154,80.7,146.46,146.45,0.57195727]
[1740805417863,86.1611,146.49,146.48,0.57195727]
[1740805418039,86.1611,146.49,146.47,0.57195727]
[1740805418246,86.1611,146.49,146.43,0.57195727]
[1740805418581,80.7,146.48,146.43,0.57195727]
[1740805420079,5.4618,146.47,146.43,0.57195727]
[1740805421481,5.4618,146.47,146.43,2.57195727]
[1740805421662,5.4618,146.47,146.45,0.57195727]
[1740805422191,80.7,146.46,146.45,0.57195727]
[1740805422358,80.7,146.46,146.45,2.57195727]
[1740805422783,80.7,146.46,146.45,2.0]
[1740805422970,80.7,146.46,146.45,2.57195727]
[1740805429265,0.063,146.47,146.45,2.57195727]
[1740805429471,0.063,146.47,146.46,2.0]
[1740805430452,0.063,146.47,146.46,2.57195727]
[1740805436260,0.063,146.47,146.44,0.57195727]
[1740805436455,80.763,146.47,146.43,0.57195727]
[1740805437164,80.7,146.46,146.43,0.57195727]
[1740805437857,5.4626,146.45,146.44,2.0]
[1740805438066,5.4626,146.45,146.43,2.57195727]
[1740805438772,5.4626,146.45,146.43,0.57195727]
[1740805439164,5.4626,146.45,146.42,0.57195727]
[1740805439454,80.7,146.44,146.42,2.57195727]
[1740805440373,80.7,146.44,146.42,0.57195727]
[1740805440565,80.7,146.44,146.42,2.0]
[1740805440871,80.7,146.44,146.43,0.57195727]
[1740805444285,0.063,146.47,146.46,0.57195727]
[1740805444774,5.5248,146.47,146.44,2.57195727]
[1740805444972,5.5248,146.47,146.44,0.57195727]
[1740805445163,5.5248,146.47,146.39,88.3]
[1740805445164,0.063,146.47,146.46,0.57195727]
[1740805446164,0.063,146.47,146.46,2.57195727]
[1740805451582,25.5248,146.47,146.44,0.57195727]
[1740805452080,80.7,146.46,146.45,0.57195727]
[1740805452987,80.7,146.46,146.45,2.57195727]
[1740805453358,0.063,146.47,146.46,0.57195727]
[1740805453656,0.063,146.47,146.46,2.57195727]
[1740805457877,0.063,146.47,146.46,8.03415727]
[1740805458990,0.063,146.47,146.46,2.57195727]
[1740805464199,0.063,146.47,146.46,2.60195727]
[1740805470218,0.063,146.47,146.46,21.25160613]
[1740805470373,0.063,146.47,146.46,26.71380613]
[1740805489915,0.063,146.47,146.46,2.60195727]
[1740805490720,0.063,146.47,146.46,8.06415727]
[1740805491015,0.063,146.47,146.46,2.60195727]
[1740805491223,0.063,146.47,146.46,8.06415727]
[1740805491843,0.063,146.47,146.46,2.60195727]
[1740805492006,0.063,146.47,146.46,8.06415727]
[1740805492915,0.063,146.47,146.46,26.71380613]
[1740805493114,0.063,146.47,146.46,21.25160613]
[1740805493507,0.063,146.47,146.46,26.71380613]
[1740805493816,0.063,146.47,146.46,21.25160613]
[1740805494420,0.063,146.47,146.46,26.71380613]
[1740805497734,0.063,146.47,146.46,35.01380613]
[1740805498034,0.063,146.47,146.46,116.01380613]
[1740805499024,0.063,146.47,146.46,114.01380613]
[1740805499230,0.063,146.47,146.46,116.01380613]
[1740805499409,0.063,146.47,146.46,114.01380613]
[1740805500724,0.063,146.47,146.46,83.60195727]
[1740805501711,0.063,146.47,146.46,89.06415727]
[1740805501936,0.063,146.47,146.46,2.60195727]
[1740805502910,0.063,146.47,146.46,21.25160613]
[1740805503745,0.063,146.5,146.49,2.57195727]
[1740805504649,0.063,146.5,146.49,8.03305727]
[1740805505010,0.063,146.5,146.49,2.57195727]
[1740805505737,0.063,146.5,146.49,8.03305727]
[1740805506116,0.063,146.5,146.49,2.57195727]
[1740805508815,0.063,146.5,146.49,0.57195727]
[1740805510013,20.063,146.5,146.49,0.57195727]
[1740805510518,20.063,146.5,146.49,2.57195727]
[1740805511133,0.063,146.5,146.49,2.57195727]
[1740805512050,0.063,146.5,146.49,8.03305727]
[1740805512754,0.063,146.5,146.49,26.68270613]
[1740805516127,0.063,146.5,146.49,115.98270613]
[1740805521955,0.063,146.5,146.49,119.49098085]
[1740805524062,0.063,146.5,146.49,113.98270613]
[1740805524439,0.063,146.5,146.49,108.52160613]
[1740805524845,0.063,146.5,146.49,2.57195727]
[1740805525764,20.063,146.5,146.49,0.57195727]
[1740805526068,20.0,146.48,146.47,0.60195727]
[1740805527159,80.763,146.5,146.49,0.57195727]
[1740805527858,0.063,146.5,146.49,0.57195727]
[1740805529135,0.063,146.5,146.49,2.57195727]
[1740805529954,0.063,146.5,146.49,0.57195727]
[1740805531132,80.763,146.5,146.49,0.57195727]
[1740805533044,86.2237,146.5,146.49,0.57195727]
[1740805533250,80.763,146.5,146.49,0.57195727]
[1740805534066,86.2237,146.5,146.49,0.57195727]
[1740805534450,20.0,146.48,146.47,0.60195727]
[1740805536377,25.4614,146.48,146.47,0.60195727]
[1740805537546,27.0918,146.48,146.47,0.60195727]
[1740805540080,107.7918,146.48,146.47,0.60195727]
[1740805540766,107.7918,146.48,146.47,0.03]
[1740805540969,107.7918,146.48,146.46,0.03]
[1740805541947,6.3457,146.47,146.46,0.03]
[1740805542764,11.8075,146.47,146.46,0.03]
[1740805545086,5.4618,146.47,146.46,0.60195727]
[1740805545281,5.4618,146.47,146.46,0.03]
[1740805552887,20.0,146.44,146.43,0.03]
[1740805553053,26.3,146.44,146.43,0.03]
[1740805553456,26.3,146.44,146.43,0.0001]
[1740805554058,31.7629,146.44,146.43,0.0001]
[1740805555583,31.7629,146.44,146.43,0.57205727]
[1740805556300,19.7074,146.47,146.43,2.57205727]
[1740805556301,5.4626,146.45,146.43,2.57205727]
[1740805556653,5.4626,146.45,146.44,0.57195727]
[1740805556871,5.4626,146.45,146.43,0.0001]
[1740805557489,5.4626,146.45,146.43,0.57205727]
[1740805558172,5.4626,146.45,146.43,0.0001]
[1740805558786,80.7,146.44,146.43,0.0001]
[1740805559283,86.1629,146.44,146.43,0.0001]
[1740805561387,19.1178,146.46,146.43,0.0001]
[1740805561697,20.0,146.44,146.43,0.0001]
[1740805561856,25.4993809,146.44,146.43,0.0001]
[1740805563472,30.9622809,146.44,146.43,0.0001]
[1740805570887,31.0252809,146.44,146.43,0.0001]
[1740805571106,71.9975809,146.44,146.39,1.0]
[1740805571270,20.0,146.4,146.39,1.0]
[1740805572270,25.4644,146.4,146.39,1.0]
[1740805575002,20.0,146.4,146.39,1.0]
[1740805575175,116.6789,146.42,146.41,0.57195727]
[1740805575176,115.14,146.42,146.41,0.57195727]
[1740805575504,0.063,146.44,146.42,2.57195727]
[1740805575800,0.063,146.44,146.43,2.57195727]
[1740805575976,25.5259,146.44,146.42,2.57195727]
[1740805576177,5.5259,146.44,146.43,0.57195727]
[1740805577274,0.063,146.44,146.43,0.57195727]
[1740805578103,0.063,146.44,146.43,2.57195727]
[1740805579379,20.063,146.44,146.43,2.57195727]
[1740805579780,0.063,146.44,146.43,2.57195727]
[1740805580086,0.063,146.44,146.43,0.57195727]
[1740805580276,0.063,146.44,146.4,0.57195727]
[1740805581009,0.063,146.44,146.39,1.57195727]
[1740805581205,80.7,146.43,146.39,1.57195727]
[1740805581504,5.4637,146.42,146.41,0.57195727]
[1740805582412,80.7,146.43,146.42,0.57195727]
[1740805582592,5.5261,146.44,146.42,0.57195727]
[1740805584613,20.0,146.42,146.41,0.60195727]
[1740805584996,20.0,146.42,146.41,0.03]
[1740805585302,20.0,146.42,146.41,2.03]
[1740805585495,20.0,146.42,146.41,2.60195727]
[1740805586209,5.5261,146.44,146.41,2.60195727]
[1740805586417,20.0,146.42,146.41,0.60195727]
[1740805587012,20.0,146.42,146.41,0.03]
[1740805587218,25.4637,146.42,146.41,0.03]
[1740805588702,5.526,146.44,146.41,2.60195727]
[1740805589290,20.0,146.42,146.41,2.60195727]
[1740805591712,0.063,146.44,146.42,0.57195727]
[1740805591895,0.063,146.44,146.43,2.57195727]
[1740805592518,20.063,146.44,146.43,2.57195727]
[1740805593817,0.063,146.44,146.43,2.57195727]
[1740805596217,0.063,146.44,146.43,2.60195727]
[1740805598700,0.063,146.44,146.43,26.71490613]
[1740805600038,0.063,146.44,146.43,21.25160613]
[1740805600223,0.063,146.44,146.43,2.60195727]
[1740805602130,20.063,146.44,146.43,0.60195727]
[1740805602336,20.063,146.44,146.43,2.60195727]
[1740805602929,20.063,146.44,146.43,0.60195727]
[1740805603227,20.063,146.44,146.43,2.60195727]
[1740805603933,0.063,146.44,146.43,2.60195727]
[1740805604838,20.063,146.44,146.43,2.60195727]
[1740805605942,0.063,146.44,146.43,2.60195727]
[1740805607535,0.063,146.44,146.43,8.06525727]
[1740805607741,0.063,146.44,146.43,14.55525727]
[1740805608833,0.063,146.44,146.43,33.20490613]
[1740805610232,0.063,146.47,146.46,2.57195727]
[1740805611333,0.063,146.47,146.46,21.22160613]
[1740805611519,0.063,146.47,146.46,26.68380613]
[1740805612431,0.063,146.5,146.49,21.22160613]
[1740805615236,20.063,146.5,146.49,2.57195727]
[1740805618540,0.063,146.5,146.49,2.57195727]
[1740805622344,20.063,146.5,146.49,0.57195727]
[1740805622513,20.063,146.5,146.49,2.57195727]
[1740805623736,20.063,146.5,146.49,0.57195727]
[1740805624532,106.2237,146.5,146.46,0.57195727]
[1740805624822,20.0,146.47,146.46,0.57195727]
[1740805625029,100.7,146.47,146.46,0.57195727]
[1740805627752,102.3467,146.47,146.46,0.57195727]
[1740805629940,100.7,146.47,146.46,0.57195727]
[1740805630330,100.7,146.47,146.46,2.57195727]
[1740805631919,100.7,146.47,146.46,2.60195727]
[1740805632337,100.7,146.47,146.46,0.60195727]
[1740805632546,100.7,146.47,146.46,2.60195727]
[1740805635446,100.7,146.47,146.46,0.60195727]
[1740805635749,106.1618,146.47,146.46,0.60195727]
[1740805636044,106.1618,146.47,146.46,0.03]
[1740805636428,33.5156,146.47,146.46,0.0001]
[1740805637354,53.59329159,146.47,146.46,0.0001]
[1740805637645,53.59329159,146.47,146.41,0.03]
[1740805637646,67.24789159,146.47,146.41,0.03]
[1740805638739,94.55719159,146.47,146.41,0.03]
[1740805639653,93.12914886,146.47,146.41,0.03]
[1740805639855,27.1702,146.47,146.41,2.60195727]
[1740805640230,27.1702,146.47,146.41,0.03]
[1740805640231,20.0,146.44,146.41,0.03]
[1740805641266,86.1633,146.43,146.41,0.03]
[1740805641549,80.7,146.42,146.41,0.03]
[1740805642733,80.2373213,146.42,146.41,0.03]
[1740805643251,85.7010213,146.42,146.41,0.03]
[1740805643858,20.0,146.4,146.39,1.0]
[1740805644150,1.548,146.41,146.39,1.0]
[1740805645357,7.1389466,146.41,146.39,1.0]
[1740805645657,5.4644,146.4,146.39,1.0]
[1740805645960,20.0,146.38,146.32,0.60195727]
[1740805646267,21.42804273,146.37,146.32,0.03]
[1740805646563,20.0,146.33,146.32,0.03]
[1740805647457,20.0,146.33,146.32,2.60195727]
[1740805647655,115.14,146.36,146.35,2.57195727]
[1740805648238,115.14,146.36,146.34,0.57195727]
[1740805648536,20.0,146.33,146.32,0.03]
[1740805649549,5.4668,146.34,146.32,0.03]
[1740805651443,5.4664,146.35,146.32,0.60195727]
[1740805651953,20.0,146.33,146.32,0.60195727]
[1740805652539,20.0,146.33,146.32,0.03]
[1740805653562,25.467,146.33,146.32,0.03]
[1740805656143,33.4023,146.33,146.31,0.03]
[1740805658748,33.4023,146.33,146.28,0.03]
[1740805658749,20.0,146.29,146.28,0.03]
[1740805659157,20.0,146.29,146.26,0.03]
[1740805660341,20.0,146.25,146.22,0.57195727]
[1740805660780,20.0,146.25,146.23,0.57195727]
[1740805660940,25.4701,146.25,146.22,0.57195727]
[1740805661140,25.4701,146.25,146.22,2.0]
[1740805661443,154.3653,146.25,146.19,2.57195727]
[1740805661658,140.6901,146.25,146.22,0.57195727]
[1740805662259,135.22,146.25,146.24,0.57195727]
[1740805662438,135.22,146.25,146.24,2.57195727]
[1740805662639,115.22,146.25,146.24,2.57195727]
[1740805667954,115.22,146.25,146.24,2.60195727]
[1740805669953,80.7,146.27,146.25,0.57195727]
[1740805669954,5.4697,146.26,146.25,0.57195727]
[1740805670169,5.4697,146.26,146.25,2.57195727]
[1740805673773,86.1697,146.26,146.25,2.57195727]
[1740805675974,86.1697,146.26,146.24,0.03]
[1740805676173,80.7,146.25,146.24,0.03]
[1740805676479,80.7,146.25,146.24,2.60195727]
[1740805676654,80.7,146.25,146.24,2.03]
[1740805677163,80.7,146.25,146.24,0.03]
[1740805677981,80.7,146.25,146.24,0.60195727]
[1740805678277,86.17,146.25,146.24,0.60195727]
[1740805678475,86.17,146.25,146.24,2.60195727]
[1740805679077,86.17,146.25,146.24,0.03]
[1740805679285,86.17,146.25,146.24,2.60195727]
[1740805680181,86.1689,146.28,146.27,2.57195727]
[1740805681886,5.4689,146.28,146.27,2.57195727]
[1740805682070,5.4685,146.29,146.28,2.57195727]
[1740805682476,80.7,146.3,146.28,2.57195727]
[1740805682664,86.1682,146.3,146.29,2.57195727]
[1740805684572,80.7,146.3,146.29,2.57195727]
[1740805686396,86.1682,146.3,146.29,2.57195727]
[1740805686858,80.7,146.3,146.29,2.57195727]
[1740805687059,86.1682,146.3,146.29,2.57195727]
[1740805687370,86.1682,146.3,146.29,0.57195727]
[1740805687371,5.4682,146.3,146.29,0.57195727]
[1740805687780,120.7079,146.31,146.3,0.57195727]
[1740805687993,120.7079,146.31,146.3,2.57195727]
[1740805688290,115.24,146.31,146.3,2.57195727]
[1740805690880,115.24,146.31,146.26,18.64964886]
[1740805690881,80.7,146.34,146.33,2.57195727]
[1740805691073,86.1656,146.37,146.36,2.57195727]
[1740805691386,80.7,146.37,146.36,2.57195727]
[1740805692493,195.983,146.39,146.38,2.57195727]
[1740805693679,20.0,146.37,146.36,0.57195727]
[1740805693884,20.0,146.34,146.33,0.57195727]
[1740805694280,25.4667,146.34,146.33,0.57195727]
[1740805695177,20.0,146.31,146.3,2.57195727]
[1740805695377,100.7,146.3,146.28,2.57195727]
[1740805695570,80.7,146.29,146.28,0.57195727]
[1740805695982,80.7,146.29,146.28,2.57195727]
[1740805696491,86.1685,146.29,146.28,2.57195727]
[1740805696688,80.7,146.29,146.28,2.57195727]
[1740805697380,20.0,146.3,146.29,0.57195727]
[1740805697701,20.0,146.3,146.29,2.57195727]
[1740805698505,20.0,146.3,146.29,0.57195727]
[1740805698704,25.4682,146.3,146.29,2.57195727]
[1740805699006,20.0,146.3,146.29,2.57195727]
[1740805701408,80.7,146.31,146.3,2.57195727]
[1740805702870,86.1678,146.31,146.29,0.57195727]
[1740805703076,86.1678,146.31,146.3,0.57195727]
[1740805703277,86.1678,146.31,146.3,2.57195727]
[1740805703490,86.1678,146.31,146.3,0.57195727]
[1740805703876,86.1678,146.31,146.29,2.57195727]
[1740805704176,86.1678,146.31,146.3,0.57195727]
[1740805704697,25.4685,146.29,146.28,0.57195727]
[1740805704887,80.7,146.28,146.27,2.57195727]
[1740805706803,86.1689,146.28,146.27,2.57195727]
[1740805707108,80.7,146.28,146.27,2.57195727]
[1740805708692,86.1689,146.28,146.27,2.57195727]
[1740805709610,5.4689,146.28,146.27,2.57195727]
[1740805709814,20.0,146.29,146.27,2.57195727]
[1740805709993,5.4682,146.3,146.29,0.57195727]
[1740805710193,20.0,146.28,146.27,2.57195727]
[1740805710392,25.4689,146.28,146.27,2.57195727]
[1740805711902,20.0,146.28,146.27,2.57195727]
[1740805712988,25.4686,146.29,146.27,2.57195727]
[1740805713395,25.4686,146.29,146.28,2.57195727]
[1740805713613,25.4686,146.29,146.27,2.57195727]
[1740805716600,25.5316,146.29,146.27,2.57195727]
[1740805718824,25.5316,146.29,146.28,2.57195727]
[1740805719432,20.063,146.29,146.28,2.57195727]
[1740805720232,0.063,146.29,146.28,2.57195727]
[1740805720692,0.063,146.29,146.28,8.04085727]
[1740805722910,0.063,146.29,146.28,26.69050613]
[1740805725701,0.063,146.29,146.28,2.57195727]
[1740805733721,20.063,146.29,146.27,2.57195727]
[1740805734130,19.563,146.29,146.27,2.57195727]
[1740805735233,25.0317,146.29,146.27,2.57195727]
[1740805735538,80.7,146.28,146.27,2.57195727]
[1740805739153,80.2,146.3,146.27,2.57195727]
[1740805739727,80.2,146.3,146.29,2.0]
[1740805740430,80.263,146.3,146.29,2.0]
[1740805741949,80.263,146.3,146.29,2.57195727]
[1740805744650,79.763,146.3,146.29,2.57195727]
[1740805747958,0.063,146.3,146.29,26.69010613]
[1740805748130,0.063,146.3,146.29,8.04045727]
[1740805748559,0.063,146.3,146.29,2.57195727]
[1740805749052,0.063,146.39,146.38,2.57195727]
[1740805749533,0.063,146.39,146.38,21.22160613]
[1740805749932,10.16583744,146.43,146.38,21.22160613]
[1740805750160,20.0,146.41,146.4,2.57195727]
[1740805750533,20.0,146.41,146.4,2.0]
[1740805750732,20.0,146.41,146.4,2.57195727]
[1740805751161,79.7,146.43,146.42,2.57195727]
[1740805752862,79.7,146.43,146.42,2.0]
[1740805753553,79.7,146.43,146.42,2.57195727]
[1740805753758,79.7,146.43,146.42,2.0]
[1740805753947,79.7,146.43,146.42,2.57195727]
[1740805755370,79.2,146.43,146.42,2.57195727]
[1740805756767,7.947,146.44,146.43,2.57195727]
[1740805756768,79.263,146.44,146.43,2.57195727]
[1740805758066,0.063,146.44,146.43,2.57195727]
[1740805759363,20.063,146.44,146.43,2.0]
[1740805759568,20.0,146.43,146.42,2.57195727]
[1740805760453,19.5,146.43,146.42,2.57195727]
[1740805761259,98.7,146.43,146.42,2.57195727]
[1740805761460,104.1633,146.43,146.42,2.57195727]
[1740805761666,98.7,146.43,146.42,2.57195727]
[1740805765273,98.763,146.43,146.42,2.57195727]
[1740805765979,19.563,146.43,146.42,2.57195727]
[1740805766168,25.0263,146.43,146.42,2.57195727]
[1740805767282,19.563,146.43,146.42,2.57195727]
[1740805767462,25.0263,146.43,146.42,2.57195727]
[1740805768186,25.0263,146.43,146.42,2.0]
[1740805768370,25.0263,146.43,146.42,2.57195727]
[1740805768890,25.0263,146.43,146.42,2.0]
[1740805769187,25.0263,146.43,146.41,0.60195727]
[1740805769188,80.8121,146.42,146.41,0.03]
[1740805769392,20.0,146.38,146.36,2.57195727]
[1740805769684,79.2,146.37,146.36,2.57195727]
[1740805770388,79.2,146.37,146.36,2.0]
[1740805770755,79.2,146.37,146.35,0.57195727]
[1740805770756,84.6656,146.37,146.35,2.57195727]
[1740805771278,84.6656,146.37,146.36,2.57195727]
[1740805772389,20.0,146.34,146.33,2.0]
[1740805772575,79.2,146.36,146.31,2.57195727]
[1740805772576,104.667,146.33,146.31,2.57195727]
[1740805772882,104.667,146.33,146.32,2.57195727]
[1740805773088,104.667,146.33,146.32,0.57195727]
[1740805773462,104.667,146.33,146.32,2.57195727]
[1740805773863,104.667,146.33,146.32,0.57195727]
[1740805774064,99.2,146.33,146.32,2.57195727]
[1740805774468,79.2,146.33,146.32,2.57195727]
[1740805775469,127.7639,146.39,146.37,2.57195727]
[1740805775470,79.2,146.38,146.37,2.57195727]
[1740805777191,115.14,146.39,146.38,0.57195727]